[Event "Championnat d'Europe de Blitz"]
[Date "2024.12.09"]
[White "Dragicevic, Drazen"]
[Black "Santos Latasa, Jaime"]
[WhiteElo "2332"]
[BlackElo "2628"]
[Round "2.9"]
[Result "0-1"]
[TimeControl "180+2"]

1. Nf3 {[%clk 00:03:02]} e6 {[%emt 00:00:01] [%clk 00:03:03]} 2. g3 {[%emt
00:00:02] [%clk 00:03:03]} b5 {[%emt 00:00:01] [%clk 00:03:04]} 3. Na3 {[%emt
00:00:04] [%clk 00:03:01]} b4 {[%emt 00:00:03] [%clk 00:03:02]} 4. Nc4 {[%emt
00:00:02] [%clk 00:03:01]} d5 {[%emt 00:00:04] [%clk 00:03:01]} 5. Ne3 {[%emt
00:00:18] [%clk 00:02:45]} Nf6 {[%emt 00:00:02] [%clk 00:03:01]} 6. d4 {[%emt
00:00:07] [%clk 00:02:39]} c5 {[%emt 00:00:06] [%clk 00:02:57]} 7. Bg2 {[%emt
00:00:18] [%clk 00:02:23]} Bb7 {[%emt 00:00:05] [%clk 00:02:54]} 8. O-O {[%emt
00:00:03] [%clk 00:02:22]} Nbd7 {[%emt 00:00:01] [%clk 00:02:55]} 9. a3 {[%emt
00:00:21] [%clk 00:02:04]} a5 {[%emt 00:00:22] [%clk 00:02:34]} 10. axb4 {[%emt
00:00:03] [%clk 00:02:04]} axb4 {[%emt 00:00:01] [%clk 00:02:35]} 11. Rxa8
{[%emt 00:00:06] [%clk 00:01:59]} Qxa8 {[%clk 00:02:36]} 12. Bd2 {[%emt
00:00:48] [%clk 00:01:14]} Be7 {[%emt 00:00:07] [%clk 00:02:31]} 13. c4 {[%emt
00:00:07] [%clk 00:01:09]} bxc3 {[%emt 00:00:35] [%clk 00:01:58]} 14. Bxc3
{[%clk 00:01:10]} O-O {[%emt 00:00:06] [%clk 00:01:53]} 15. dxc5 {[%emt
00:00:02] [%clk 00:01:10]} Bxc5 {[%emt 00:00:03] [%clk 00:01:52]} 16. Bd4 {[%emt
00:00:12] [%clk 00:01:00]} Rc8 {[%emt 00:00:04] [%clk 00:01:50]} 17. Bxc5 {[%emt
00:00:05] [%clk 00:00:57]} Nxc5 {[%emt 00:00:01] [%clk 00:01:51]} 18. b4 {[%emt
00:00:03] [%clk 00:00:57]} Nce4 {[%emt 00:00:04] [%clk 00:01:48]} 19. Qa1 {[%emt
00:00:10] [%clk 00:00:50]} Nc3 {[%emt 00:00:06] [%clk 00:01:44]} 20. Qb2 {[%emt
00:00:03] [%clk 00:00:48]} Qa6 {[%emt 00:00:06] [%clk 00:01:40]} 21. Re1 {[%emt
00:00:04] [%clk 00:00:46]} Qb6 {[%emt 00:00:10] [%clk 00:01:32]} 22. Nd1 {[%emt
00:00:18] [%clk 00:00:31]} d4 {[%emt 00:00:20] [%clk 00:01:13]} 23. Qd2 {[%emt
00:00:19] [%clk 00:00:15]} Bxf3 {[%emt 00:00:08] [%clk 00:01:06]} 24. Bxf3
{[%emt 00:00:02] [%clk 00:00:15]} Qxb4 {[%emt 00:00:05] [%clk 00:01:03]} 25. e3
{[%emt 00:00:04] [%clk 00:00:14]} e5 {[%emt 00:00:06] [%clk 00:00:59]} 26. exd4
{[%emt 00:00:01] [%clk 00:00:14]} exd4 {[%emt 00:00:02] [%clk 00:01:00]} 27. Kg2
{[%emt 00:00:04] [%clk 00:00:12]} h6 {[%emt 00:00:02] [%clk 00:00:59]} 28. g4
{[%emt 00:00:03] [%clk 00:00:12]} Qc5 {[%emt 00:00:22] [%clk 00:00:38]} 29. Nb2
{[%emt 00:00:02] [%clk 00:00:13]} Ncd5 {[%emt 00:00:04] [%clk 00:00:36]} 30. Nd3
{[%emt 00:00:04] [%clk 00:00:11]} Qc3 {[%emt 00:00:09] [%clk 00:00:28]} 31. Qxc3
{[%emt 00:00:05] [%clk 00:00:08]} Rxc3 {[%emt 00:00:05] [%clk 00:00:26]} 32. Ne5
{[%emt 00:00:04] [%clk 00:00:06]} Nf4+ {[%emt 00:00:02] [%clk 00:00:25]} 33. Kg3
{[%emt 00:00:03] [%clk 00:00:06]} g5 {[%emt 00:00:01] [%clk 00:00:26]} 34. h4
{[%emt 00:00:01] [%clk 00:00:07]} d3 {[%emt 00:00:03] [%clk 00:00:25]} 35. hxg5
{[%emt 00:00:02] [%clk 00:00:06]} hxg5 {[%emt 00:00:01] [%clk 00:00:26]} 36. Ra1
{[%emt 00:00:03] [%clk 00:00:05]} d2 {[%emt 00:00:10] [%clk 00:00:17]} 37. Ra8+
{[%clk 00:00:07]} Kg7 {[%emt 00:00:02] [%clk 00:00:17]} 38. Rd8 {[%emt 00:00:01]
[%clk 00:00:08]} Ne4+ {[%emt 00:00:04] [%clk 00:00:15]} 39. Kh2 {[%emt 00:00:02]
[%clk 00:00:08]} Rc1 {[%emt 00:00:10] [%clk 00:00:08]} 40. Bxe4 {[%emt 00:00:02]
[%clk 00:00:07]} d1=Q {[%emt 00:00:02] [%clk 00:00:08]} 41. Rxd1 {[%clk
00:00:08]} Rxd1 {[%emt 00:00:01] [%clk 00:00:09]} 42. f3 {[%emt 00:00:02] [%clk
00:00:08]} Kf6 {[%emt 00:00:02] [%clk 00:00:09]} 43. Nc4 {[%emt 00:00:02] [%clk
00:00:09]} Rd4 {[%emt 00:00:02] [%clk 00:00:08]} 44. Ne3 {[%emt 00:00:01] [%clk
00:00:10]} Rd2+ {[%emt 00:00:02] [%clk 00:00:08]} 45. Kg1 {[%emt 00:00:03] [%clk
00:00:09]} Re2 {[%emt 00:00:02] [%clk 00:00:08]} 46. Nf5 {[%emt 00:00:04] [%clk
00:00:07]} Ke5 {[%emt 00:00:01] [%clk 00:00:08]} 47. Nh6 {[%emt 00:00:03] [%clk
00:00:07]} f6 {[%emt 00:00:03] [%clk 00:00:07]} 48. Nf7+ {[%emt 00:00:01] [%clk
00:00:08]} Kd4 {[%emt 00:00:01] [%clk 00:00:08]} 49. Nd6 {[%clk 00:00:09]} Ra2
{[%emt 00:00:04] [%clk 00:00:05]} 50. Nf5+ {[%emt 00:00:02] [%clk 00:00:10]} Ke5
{[%clk 00:00:06]} 51. Ne3 {[%emt 00:00:02] [%clk 00:00:10]} Nh3+ {[%emt
00:00:02] [%clk 00:00:06]} 52. Kf1 {[%emt 00:00:02] [%clk 00:00:11]} Kf4 {[%clk
00:00:07]} 53. Nd5+ {[%emt 00:00:02] [%clk 00:00:11]} Kg3 {[%emt 00:00:01] [%clk
00:00:08]} 54. Nxf6 {[%emt 00:00:02] [%clk 00:00:11]} Nf4 {[%emt 00:00:02] [%clk
00:00:08]} 55. Nh5+ {[%emt 00:00:03] [%clk 00:00:10]} Nxh5 {[%emt 00:00:02]
[%clk 00:00:08]} 56. gxh5 {[%clk 00:00:11]} Rh2 {[%clk 00:00:09]} 57. Ke1 {[%emt
00:00:05] [%clk 00:00:09]} Rxh5 {[%emt 00:00:01] [%clk 00:00:10]} 58. Ke2 {[%clk
00:00:10]} Rh8 {[%emt 00:00:02] [%clk 00:00:10]} 59. Ke3 {[%clk 00:00:12]} Re8
{[%emt 00:00:01] [%clk 00:00:10]} 60. Kd4 {[%emt 00:00:03] [%clk 00:00:12]} Kf4
{[%clk 00:00:11]} 61. Kd3 {[%clk 00:00:14]} Rb8 {[%emt 00:00:02] [%clk
00:00:11]} 62. Kd4 {[%emt 00:00:01] [%clk 00:00:15]} Rb3 {[%emt 00:00:02] [%clk
00:00:11]} 63. Bd5 {[%emt 00:00:08] [%clk 00:00:09]} Rxf3 {[%emt 00:00:02] [%clk
00:00:11]} 0-1

[Site "Europe Echecs"]

[Event "Championnat d'Europe de Blitz"]
[Date "2024.12.09"]
[White "Van Foreest, Jorden"]
[Black "Vuckovic, Aleksandar"]
[WhiteElo "2677"]
[BlackElo "2307"]
[Round "2.10"]
[Result "1-0"]
[TimeControl "180+2"]

1. Nc3 {[%emt 00:25:05] [%clk 00:03:03]} c5 {[%emt 00:00:02] [%clk 00:03:04]} 2.
e4 {[%clk 00:03:03]} Nc6 {[%emt 00:00:01] [%clk 00:03:05]} 3. Bb5 {[%emt
00:00:02] [%clk 00:03:03]} Na5 {[%clk 00:03:06]} 4. Be2 {[%emt 00:00:05] [%clk
00:02:59]} a6 {[%emt 00:00:03] [%clk 00:03:07]} 5. Nf3 {[%emt 00:00:05] [%clk
00:02:55]} d6 {[%emt 00:00:01] [%clk 00:03:08]} 6. d4 {[%emt 00:00:02] [%clk
00:02:55]} cxd4 {[%emt 00:00:01] [%clk 00:03:09]} 7. Nxd4 {[%emt 00:00:02] [%clk
00:02:55]} g6 {[%clk 00:03:11]} 8. Be3 {[%emt 00:00:21] [%clk 00:02:36]} Nf6
{[%emt 00:00:15] [%clk 00:02:58]} 9. f4 {[%emt 00:00:33] [%clk 00:02:04]} Nc6
{[%emt 00:00:13] [%clk 00:02:48]} 10. Nxc6 {[%emt 00:00:01] [%clk 00:02:05]}
bxc6 {[%emt 00:00:02] [%clk 00:02:48]} 11. e5 {[%clk 00:02:06]} dxe5 {[%emt
00:00:10] [%clk 00:02:41]} 12. Qxd8+ {[%emt 00:00:01] [%clk 00:02:07]} Kxd8
{[%emt 00:00:02] [%clk 00:02:42]} 13. fxe5 {[%emt 00:00:05] [%clk 00:02:03]} Ng4
{[%emt 00:00:06] [%clk 00:02:37]} 14. Bb6+ {[%emt 00:00:11] [%clk 00:01:54]} Ke8
{[%emt 00:00:10] [%clk 00:02:29]} 15. O-O-O {[%emt 00:00:02] [%clk 00:01:55]}
Be6 {[%emt 00:00:22] [%clk 00:02:08]} 16. Bxa6 {[%emt 00:00:05] [%clk 00:01:52]}
Bh6+ {[%emt 00:00:10] [%clk 00:02:01]} 17. Kb1 {[%emt 00:00:01] [%clk 00:01:54]}
Kf8 {[%emt 00:00:07] [%clk 00:01:54]} 18. Be2 {[%emt 00:00:29] [%clk 00:01:27]}
Nxe5 {[%emt 00:00:11] [%clk 00:01:46]} 19. Bd4 {[%clk 00:01:28]} f6 {[%emt
00:00:10] [%clk 00:01:37]} 20. b3 {[%emt 00:00:02] [%clk 00:01:28]} Kg7 {[%emt
00:00:10] [%clk 00:01:29]} 21. Ne4 {[%clk 00:01:29]} Bd5 {[%emt 00:00:17] [%clk
00:01:15]} 22. Nc5 {[%emt 00:00:30] [%clk 00:01:01]} Bxg2 {[%emt 00:00:14] [%clk
00:01:03]} 23. Rhe1 {[%emt 00:00:01] [%clk 00:01:02]} Rhb8 {[%emt 00:00:25]
[%clk 00:00:40]} 24. Bxe5 {[%emt 00:00:04] [%clk 00:01:00]} fxe5 {[%emt
00:00:01] [%clk 00:00:41]} 25. Nd7 {[%emt 00:00:02] [%clk 00:00:59]} Rb7 {[%emt
00:00:11] [%clk 00:00:33]} 26. Nxe5 {[%clk 00:01:00]} Bf4 {[%emt 00:00:07] [%clk
00:00:28]} 27. Bc4 {[%emt 00:00:08] [%clk 00:00:54]} Bxh2 {[%emt 00:00:13] [%clk
00:00:16]} 28. Nxg6 {[%emt 00:00:13] [%clk 00:00:43]} hxg6 {[%emt 00:00:03]
[%clk 00:00:15]} 29. Rd2 {[%clk 00:00:45]} Bf4 {[%emt 00:00:04] [%clk 00:00:13]}
30. Rxg2 {[%emt 00:00:01] [%clk 00:00:46]} g5 {[%emt 00:00:04]} 31. a4 {[%clk
00:00:44]} e5 {[%emt 00:00:03] [%clk 00:00:13]} 32. Ka2 {[%emt 00:00:02] [%clk
00:00:44]} Rh8 {[%emt 00:00:03] [%clk 00:00:12]} 33. a5 {[%emt 00:00:02] [%clk
00:00:44]} Kf6 {[%emt 00:00:02] [%clk 00:00:13]} 34. a6 {[%clk 00:00:45]} Rd7
{[%emt 00:00:02] [%clk 00:00:13]} 35. Bd3 {[%emt 00:00:02] [%clk 00:00:45]} Rd4
{[%emt 00:00:03] [%clk 00:00:12]} 36. Kb2 {[%emt 00:00:05] [%clk 00:00:41]} c5
{[%emt 00:00:01] [%clk 00:00:14]} 37. Ra1 {[%emt 00:00:01] [%clk 00:00:41]} Rd7
{[%emt 00:00:03] [%clk 00:00:12]} 38. Be4 {[%emt 00:00:02] [%clk 00:00:42]} Ra7
{[%emt 00:00:01] [%clk 00:00:13]} 39. Kc3 {[%emt 00:00:05] [%clk 00:00:39]} Rh3+
{[%emt 00:00:04] [%clk 00:00:11]} 40. Kc4 {[%emt 00:00:01] [%clk 00:00:40]} Be3
{[%emt 00:00:03] [%clk 00:00:10]} 41. Kb5 {[%emt 00:00:06] [%clk 00:00:35]} Rh4
{[%emt 00:00:04] [%clk 00:00:09]} 42. Ra4 {[%emt 00:00:04] [%clk 00:00:34]} c4
{[%emt 00:00:02] [%clk 00:00:09]} 43. Rxc4 {[%emt 00:00:01] [%clk 00:00:34]} Rf4
{[%emt 00:00:02] [%clk 00:00:09]} 44. Bb7 {[%emt 00:00:02] [%clk 00:00:34]} Kf5
{[%emt 00:00:02] [%clk 00:00:09]} 45. Re2 {[%emt 00:00:02] [%clk 00:00:34]} Bd4
{[%emt 00:00:02] [%clk 00:00:10]} 46. c3 {[%clk 00:00:35]} Bg1 {[%emt 00:00:02]
[%clk 00:00:10]} 47. Rc8 {[%emt 00:00:05] [%clk 00:00:31]} Kg4 {[%emt 00:00:02]
[%clk 00:00:10]} 48. Rxe5 {[%emt 00:00:02] [%clk 00:00:31]} 1-0

[Site "Europe Echecs"]

[Event "Championnat d'Europe de Blitz"]
[Date "2024.12.09"]
[White "Jotic, Vladimir"]
[Black "Fressinet, Laurent"]
[WhiteElo "2249"]
[BlackElo "2588"]
[Round "2.11"]
[Result "0-1"]
[TimeControl "180+2"]

1. Nf3 {[%clk 00:03:03]} Nf6 {[%clk 00:03:04]} 2. g3 {[%emt 00:00:04] [%clk
00:03:04]} g6 {[%clk 00:03:05]} 3. Bg2 {[%clk 00:03:05]} Bg7 {[%clk 00:03:06]}
4. O-O {[%emt 00:00:02] [%clk 00:03:05]} O-O {[%emt 00:00:02] [%clk 00:03:06]}
5. c4 {[%clk 00:03:07]} Nc6 {[%emt 00:00:06] [%clk 00:03:02]} 6. Nc3 {[%emt
00:00:09] [%clk 00:02:59]} d5 {[%emt 00:00:02] [%clk 00:03:03]} 7. cxd5 {[%emt
00:00:01] [%clk 00:02:59]} Nxd5 {[%emt 00:00:01] [%clk 00:03:04]} 8. Qb3 {[%emt
00:00:09] [%clk 00:02:53]} Nb6 {[%emt 00:00:05] [%clk 00:03:00]} 9. d3 {[%emt
00:00:10] [%clk 00:02:46]} a5 {[%emt 00:00:01] [%clk 00:03:01]} 10. a4 {[%emt
00:00:11] [%clk 00:02:37]} Be6 {[%emt 00:00:05] [%clk 00:02:58]} 11. Qd1 {[%emt
00:00:03] [%clk 00:02:36]} Nb4 {[%emt 00:00:09] [%clk 00:02:51]} 12. Ng5 {[%emt
00:00:08] [%clk 00:02:30]} Bc8 {[%emt 00:00:01] [%clk 00:02:51]} 13. Nge4 {[%emt
00:00:15] [%clk 00:02:18]} c6 {[%emt 00:00:04] [%clk 00:02:49]} 14. Bg5 {[%emt
00:00:34] [%clk 00:01:46]} h6 {[%emt 00:00:07] [%clk 00:02:44]} 15. Bd2 {[%emt
00:00:34] [%clk 00:01:14]} N6d5 {[%emt 00:00:04] [%clk 00:02:41]} 16. Qc1 {[%emt
00:00:03] [%clk 00:01:14]} Kh7 {[%emt 00:00:02] [%clk 00:02:42]} 17. h4 {[%emt
00:00:03] [%clk 00:01:12]} Bg4 {[%emt 00:00:13] [%clk 00:02:30]} 18. Re1 {[%emt
00:00:07] [%clk 00:01:07]} Rc8 {[%emt 00:00:13] [%clk 00:02:19]} 19. Nc5 {[%emt
00:00:12] [%clk 00:00:58]} b6 {[%emt 00:00:08] [%clk 00:02:13]} 20. Nb3 {[%emt
00:00:09] [%clk 00:00:51]} Be6 {[%emt 00:00:05] [%clk 00:02:10]} 21. Qd1 {[%emt
00:00:07] [%clk 00:00:46]} Qd7 {[%emt 00:00:13] [%clk 00:01:59]} 22. d4 {[%emt
00:00:15] [%clk 00:00:33]} Nf6 {[%emt 00:00:14] [%clk 00:01:47]} 23. e4 {[%emt
00:00:12] [%clk 00:00:23]} Nd3 {[%emt 00:00:14] [%clk 00:01:35]} 0-1

[Site "Europe Echecs"]

[Event "Championnat d'Europe de Blitz"]
[Date "2024.12.09"]
[White "Pultinevicius, Paulius"]
[Black "Boci, Mateu"]
[WhiteElo "2579"]
[BlackElo "2176"]
[Round "2.12"]
[Result "1-0"]
[TimeControl "180+2"]

1. c4 {[%clk 00:03:03]} e5 {[%emt 00:00:05] [%clk 00:03:03]} 2. e3 {[%clk
00:03:04]} Nf6 {[%clk 00:03:03]} 3. Nc3 {[%emt 00:00:02] [%clk 00:03:04]} d5
{[%emt 00:00:04] [%clk 00:03:00]} 4. cxd5 {[%emt 00:00:02] [%clk 00:03:05]} Nxd5
{[%clk 00:03:01]} 5. d3 {[%emt 00:00:01] [%clk 00:03:06]} Nc6 {[%emt 00:00:03]
[%clk 00:03:00]} 6. Nf3 {[%emt 00:00:01] [%clk 00:03:06]} Be7 {[%emt 00:00:04]
[%clk 00:02:58]} 7. Be2 {[%emt 00:00:03] [%clk 00:03:05]} O-O {[%emt 00:00:03]
[%clk 00:02:58]} 8. O-O {[%emt 00:00:01] [%clk 00:03:05]} Be6 {[%emt 00:00:04]
[%clk 00:02:56]} 9. Bd2 {[%emt 00:00:04] [%clk 00:03:03]} Qd7 {[%emt 00:00:04]
[%clk 00:02:55]} 10. a3 {[%emt 00:00:01] [%clk 00:03:04]} Rad8 {[%emt 00:00:06]
[%clk 00:02:51]} 11. b4 {[%emt 00:00:12] [%clk 00:02:54]} a6 {[%emt 00:00:03]
[%clk 00:02:50]} 12. Qc2 {[%emt 00:00:08] [%clk 00:02:47]} Kh8 {[%emt 00:00:08]
[%clk 00:02:44]} 13. Ne4 {[%emt 00:00:02] [%clk 00:02:47]} f5 {[%emt 00:00:24]
[%clk 00:02:23]} 14. Nc5 {[%emt 00:00:01] [%clk 00:02:48]} Bxc5 {[%emt 00:00:03]
[%clk 00:02:22]} 15. Qxc5 {[%emt 00:00:03] [%clk 00:02:46]} e4 {[%emt 00:00:24]
[%clk 00:02:01]} 16. dxe4 {[%emt 00:00:05] [%clk 00:02:44]} fxe4 {[%emt
00:00:03] [%clk 00:02:00]} 17. Nd4 {[%emt 00:00:07] [%clk 00:02:38]} Nf4 {[%emt
00:00:27] [%clk 00:01:35]} 18. Rfe1 {[%emt 00:00:34] [%clk 00:02:05]} Nxe2+
{[%emt 00:00:19] [%clk 00:01:18]} 19. Rxe2 {[%emt 00:00:01] [%clk 00:02:06]}
Nxd4 {[%emt 00:00:14] [%clk 00:01:07]} 20. exd4 {[%emt 00:00:01] [%clk
00:02:07]} Qxd4 {[%emt 00:00:10] [%clk 00:00:59]} 21. Qxd4 {[%emt 00:00:02]
[%clk 00:02:07]} Rxd4 {[%emt 00:00:01] [%clk 00:00:59]} 22. Bc3 {[%emt 00:00:06]
[%clk 00:02:03]} Rc4 {[%emt 00:00:06] [%clk 00:00:56]} 23. Bb2 {[%emt 00:00:04]
[%clk 00:02:00]} Bd5 {[%emt 00:00:21] [%clk 00:00:38]} 24. Rae1 {[%emt 00:00:12]
[%clk 00:01:50]} h6 {[%emt 00:00:14] [%clk 00:00:25]} 25. h3 {[%emt 00:00:03]
[%clk 00:01:50]} Kh7 {[%emt 00:00:04] [%clk 00:00:23]} 26. Rd2 {[%emt 00:00:03]
[%clk 00:01:49]} Bc6 {[%emt 00:00:02] [%clk 00:00:24]} 27. Re3 {[%emt 00:00:02]
[%clk 00:01:48]} Rf7 {[%emt 00:00:10] [%clk 00:00:15]} 28. Kh2 {[%emt 00:00:11]
[%clk 00:01:39]} Re7 {[%emt 00:00:08] [%clk 00:00:10]} 29. f4 {[%emt 00:00:07]
[%clk 00:01:34]} Rf7 {[%emt 00:00:03] [%clk 00:00:09]} 30. Rf2 {[%emt 00:00:17]
[%clk 00:01:18]} a5 {[%emt 00:00:04] [%clk 00:00:08]} 31. bxa5 {[%emt 00:00:03]
[%clk 00:01:17]} Rf5 {[%emt 00:00:01] [%clk 00:00:09]} 32. Rg3 {[%emt 00:00:04]
[%clk 00:01:15]} Rf7 {[%emt 00:00:02] [%clk 00:00:09]} 33. f5 {[%emt 00:00:12]
[%clk 00:01:05]} Rc5 {[%emt 00:00:03] [%clk 00:00:08]} 34. f6 {[%emt 00:00:01]
[%clk 00:01:06]} g5 {[%emt 00:00:03] [%clk 00:00:08]} 35. Bc3 {[%emt 00:00:02]
[%clk 00:01:05]} Kg6 {[%emt 00:00:03] [%clk 00:00:07]} 36. Re3 {[%emt 00:00:12]
[%clk 00:00:55]} h5 {[%emt 00:00:03] [%clk 00:00:06]} 37. Rd2 {[%emt 00:00:04]
[%clk 00:00:53]} Rf5 {[%emt 00:00:03] [%clk 00:00:05]} 38. Rd8 {[%emt 00:00:03]
[%clk 00:00:51]} Rf2 {[%emt 00:00:02] [%clk 00:00:05]} 39. Rg8+ {[%emt 00:00:04]
[%clk 00:00:49]} Kh6 {[%emt 00:00:03] [%clk 00:00:05]} 40. Rg3 {[%emt 00:00:08]
[%clk 00:00:43]} Rc2 {[%emt 00:00:02] [%clk 00:00:04]} 41. Bd4 {[%emt 00:00:15]
[%clk 00:00:30]} e3 {[%emt 00:00:02] [%clk 00:00:04]} 42. Bxe3 {[%emt 00:00:02]
[%clk 00:00:31]} Kh7 {[%emt 00:00:02] [%clk 00:00:04]} 43. R8xg5 {[%emt
00:00:02] [%clk 00:00:30]} Rxf6 {[%emt 00:00:02] [%clk 00:00:04]} 44. Rxh5+
{[%emt 00:00:01] [%clk 00:00:32]} 1-0

[Site "Europe Echecs"]

[Event "Championnat d'Europe de Blitz"]
[Date "2024.12.09"]
[White "Oliinyk, Serafym"]
[Black "Kadric, Denis"]
[WhiteElo "2207"]
[BlackElo "2544"]
[Round "2.13"]
[Result "0-1"]
[TimeControl "180+2"]

1. e4 {[%emt 00:01:41] [%clk 00:03:03]} d6 {[%clk 00:03:04]} 2. d4 {[%clk
00:03:04]} Nf6 {[%clk 00:03:05]} 3. Nc3 {[%clk 00:03:06]} e5 {[%clk 00:03:06]}
4. Nf3 {[%emt 00:00:02] [%clk 00:03:05]} Nbd7 {[%emt 00:00:01] [%clk 00:03:07]}
5. Rg1 {[%emt 00:00:04] [%clk 00:03:03]} c6 {[%emt 00:00:04] [%clk 00:03:06]} 6.
g4 {[%emt 00:00:05] [%clk 00:02:59]} h6 {[%clk 00:03:07]} 7. Be3 {[%emt
00:00:15] [%clk 00:02:47]} Be7 {[%clk 00:03:08]} 8. Qd2 {[%emt 00:00:02] [%clk
00:02:47]} exd4 {[%clk 00:03:09]} 9. Nxd4 {[%emt 00:00:04] [%clk 00:02:44]} Ne5
{[%emt 00:00:02] [%clk 00:03:10]} 10. Be2 {[%emt 00:00:27] [%clk 00:02:19]}
Nfxg4 {[%emt 00:00:16] [%clk 00:02:56]} 11. O-O-O {[%emt 00:00:12] [%clk
00:02:09]} g5 {[%emt 00:00:17] [%clk 00:02:41]} 12. h3 {[%emt 00:00:08] [%clk
00:02:03]} Nxe3 {[%emt 00:00:03] [%clk 00:02:40]} 13. Qxe3 {[%emt 00:00:02]
[%clk 00:02:03]} Qb6 {[%emt 00:00:13] [%clk 00:02:28]} 14. Kb1 {[%emt 00:00:11]
[%clk 00:01:54]} Bd7 {[%clk 00:02:29]} 15. f4 {[%emt 00:00:40] [%clk 00:01:16]}
gxf4 {[%emt 00:00:02] [%clk 00:02:30]} 16. Qxf4 {[%emt 00:00:01] [%clk
00:01:17]} O-O-O {[%emt 00:00:02] [%clk 00:02:31]} 17. Nf5 {[%emt 00:00:16]
[%clk 00:01:02]} Bxf5 {[%clk 00:02:31]} 18. Qxf5+ {[%emt 00:00:09] [%clk
00:00:56]} Kb8 {[%emt 00:00:01] [%clk 00:02:33]} 19. Bh5 {[%emt 00:00:22] [%clk
00:00:35]} Nc4 {[%emt 00:00:49] [%clk 00:01:46]} 20. b3 {[%emt 00:00:15] [%clk
00:00:23]} Ne3 {[%clk 00:01:47]} 21. Qxf7 {[%emt 00:00:13] [%clk 00:00:12]} Nxd1
{[%emt 00:00:02]} 22. Rxd1 {[%clk 00:00:13]} Qc7 {[%clk 00:01:49]} 23. Bg4
{[%emt 00:00:09] [%clk 00:00:05]} Rhf8 {[%emt 00:00:07] [%clk 00:01:44]} 24. Qc4
{[%emt 00:00:01] [%clk 00:00:06]} Bf6 {[%emt 00:00:04] [%clk 00:01:42]} 25. a4
{[%emt 00:00:04] [%clk 00:00:04]} Qa5 {[%emt 00:00:08] [%clk 00:01:36]} 26. Na2
{[%emt 00:00:01] [%clk 00:00:04]} Qe5 {[%emt 00:00:05] [%clk 00:01:34]} 27. c3
{[%emt 00:00:03] [%clk 00:00:03]} Rfe8 {[%emt 00:00:02] [%clk 00:01:34]} 28. Bf5
{[%emt 00:00:02] [%clk 00:00:03]} d5 {[%clk 00:01:35]} 29. Qc5 {[%emt 00:00:02]
[%clk 00:00:03]} dxe4 {[%emt 00:00:05] [%clk 00:01:32]} 30. Rxd8+ {[%emt
00:00:01] [%clk 00:00:04]} Bxd8 {[%emt 00:00:08] [%clk 00:01:26]} 31. Qxe5+
{[%emt 00:00:03] [%clk 00:00:03]} Rxe5 {[%emt 00:00:01] [%clk 00:01:27]} 32. Bg4
{[%emt 00:00:01] [%clk 00:00:04]} Bg5 {[%emt 00:00:13] [%clk 00:01:16]} 33. Kc2
{[%emt 00:00:02] [%clk 00:00:04]} a5 {[%emt 00:00:02] [%clk 00:01:16]} 34. c4
{[%emt 00:00:03] [%clk 00:00:03]} Kc7 {[%emt 00:00:03] [%clk 00:01:14]} 35. Nc3
{[%emt 00:00:02] [%clk 00:00:04]} Kd6 {[%emt 00:00:01] [%clk 00:01:15]} 36. Ne2
{[%emt 00:00:02] [%clk 00:00:03]} Re8 {[%emt 00:00:08] [%clk 00:01:10]} 37. Nc3
{[%emt 00:00:01] [%clk 00:00:04]} Ke5 {[%emt 00:00:05] [%clk 00:01:07]} 38. Ne2
{[%emt 00:00:01] [%clk 00:00:05]} Rd8 {[%emt 00:00:03] [%clk 00:01:06]} 39. Bh5
{[%emt 00:00:03] [%clk 00:00:04]} Rd2+ {[%emt 00:00:02] [%clk 00:01:06]} 40. Kc3
{[%clk 00:00:05]} Rd3+ {[%emt 00:00:01] [%clk 00:01:07]} 41. Kc2 {[%clk
00:00:06]} Rxh3 {[%emt 00:00:01] [%clk 00:01:08]} 42. Bg4 {[%emt 00:00:01] [%clk
00:00:06]} Rh2 {[%emt 00:00:02] [%clk 00:01:08]} 43. Kd1 {[%emt 00:00:02] [%clk
00:00:07]} h5 {[%emt 00:00:01] [%clk 00:01:08]} 44. Bc8 {[%clk 00:00:09]} h4
{[%emt 00:00:05] [%clk 00:01:05]} 45. Bxb7 {[%emt 00:00:01] [%clk 00:00:09]} h3
{[%emt 00:00:05] [%clk 00:01:03]} 46. Bxc6 {[%emt 00:00:01] [%clk 00:00:10]}
Rxe2 {[%emt 00:00:02] [%clk 00:01:03]} 47. Kxe2 {[%emt 00:00:01] [%clk
00:00:10]} h2 {[%emt 00:00:01] [%clk 00:01:04]} 48. Bxe4 {[%emt 00:00:02] [%clk
00:00:11]} Kxe4 {[%emt 00:00:01] [%clk 00:01:06]} 0-1

[Site "Europe Echecs"]